fUSD/lending_fUSD_20250702
["ID","MTS","AMOUNT","RATE_DAILY","PERIOD"]
[369141124,1751499038091,-160.39,0.00023973,2]
[369141125,1751499038100,-500.0,0.00023973,2]
[369141126,1751499038109,-500.0,0.00023973,2]
[369141127,1751499038119,-500.0,0.00023973,2]
[369141128,1751499038129,-500.0,0.00023973,2]
[369141129,1751499038138,-500.0,0.00023973,2]
[369141130,1751499038148,-500.0,0.00023973,2]
[369141131,1751499038157,-777.0,0.00023973,2]
[369141132,1751499038166,-500.0,0.00023977,2]
[369141133,1751499038176,-271.01012076,0.00023977,2]
[369141134,1751499038185,-300.0,0.00023978,2]
[369141135,1751499038194,-300.0,0.00023978,2]
[369141136,1751499038205,-237.66888671,0.00023978,2]
[369141137,1751499038217,-151.0,0.00023978,2]
[369141138,1751499038227,-500.0,0.00023978,2]
[369141139,1751499038236,-500.0,0.00023978,2]
[369141140,1751499038247,-500.0,0.00023978,2]
[369141141,1751499038256,-500.0,0.00023978,2]
[369141142,1751499038265,-500.0,0.00023978,2]
[369141143,1751499038275,-500.0,0.00023978,2]
[369141144,1751499038284,-500.0,0.00023978,2]
[369141145,1751499038294,-500.0,0.00023978,2]
[369141146,1751499038303,-500.0,0.00023978,2]
[369141147,1751499038312,-500.0,0.00023978,2]
[369141148,1751499038323,-500.0,0.00023978,2]
[369141149,1751499038332,-500.0,0.00023978,2]
[369141150,1751499038342,-500.0,0.00023978,2]
[369141151,1751499038352,-500.0,0.00023978,2]
[369141152,1751499038362,-500.0,0.00023978,2]
[369141153,1751499038371,-500.0,0.00023978,2]
[369141154,1751499038381,-500.0,0.00023978,2]
[369141155,1751499038391,-500.0,0.00023978,2]
[369141156,1751499038400,-500.0,0.00023978,2]
[369141157,1751499038410,-500.0,0.00023978,2]
[369141158,1751499038418,-500.0,0.00023978,2]
[369141159,1751499038427,-500.0,0.00023978,2]
[369141160,1751499038437,-500.0,0.00023978,2]
[369141161,1751499038446,-500.0,0.00023978,2]
[369141162,1751499038455,-500.0,0.00023978,2]
[369141163,1751499038465,-500.0,0.00023978,2]
[369141164,1751499038474,-500.0,0.00023978,2]
[369141165,1751499038483,-500.0,0.00023978,2]
[369141166,1751499038493,-500.0,0.00023978,2]
[369141167,1751499038502,-500.0,0.00023978,2]
[369141168,1751499038512,-500.0,0.00023978,2]
[369141169,1751499038521,-500.0,0.00023978,2]
[369141170,1751499038531,-500.0,0.00023978,2]
[369141171,1751499038540,-500.0,0.00023978,2]
[369141172,1751499038549,-668.65185757,0.00023978,2]
[369141174,1751499038559,-152.100098,0.00023984,7]
[369141175,1751499038568,-151.0,0.00023984,7]
[369141176,1751499038577,-220.003936,0.00023984,7]
[369141177,1751499038586,-171.701269,0.00023984,7]
[369141178,1751499038595,-220.003936,0.00023984,7]
[369141179,1751499038605,-171.701269,0.00023984,7]
[369141180,1751499038614,-249.760216,0.00023984,7]
[369141181,1751499038624,-666.0,0.00023984,2]
[369141182,1751499038633,-300.0,0.00023984,2]
[369141183,1751499038643,-151.0,0.00023985,7]
[369141184,1751499038652,-855.769157,0.00023985,7]
[369141185,1751499038662,-855.769157,0.00023985,7]
[369141186,1751499038671,-323.076165,0.00023985,7]
[369141187,1751499038680,-323.076165,0.00023985,7]
[369141188,1751499038690,-283.878071,0.00023985,7]
[369141189,1751499038700,-151.0,0.00023985,7]
[369141190,1751499038710,-151.0,0.00023985,7]
[369141191,1751499038720,-151.0,0.00023985,7]
[369141192,1751499038730,-289.700308,0.00023985,7]
[369141193,1751499038740,-151.0,0.00023985,7]
[369141194,1751499038750,-151.0,0.00023985,7]
[369141196,1751499038759,-933.3938,0.00023985,7]
[369141198,1751499038770,-933.3938,0.00023985,7]
[369141200,1751499038780,-220.003936,0.00023985,7]
[369141202,1751499038789,-220.003936,0.00023985,7]
[369141204,1751499038798,-171.701269,0.00023985,7]
[369141206,1751499038808,-171.701269,0.00023985,7]
[369141208,1751499038818,-151.0,0.00023985,7]
[369141210,1751499038828,-151.825368,0.00023985,7]
[369141212,1751499038841,-313.034826,0.00023985,7]
[369141214,1751499038850,-313.034826,0.00023985,7]
[369141216,1751499038859,-44434.66196938,0.00023985,2]
[369141223,1751499038926,-18708.74986581,0.00023985,2]
[369141225,1751499038942,-750.78902854,0.00023985,2]
[369141227,1751499038953,-2419.86900619,0.00023985,2]
[369141230,1751499038965,-3528.5203675,0.00023985,2]
[369141232,1751499038976,-17466.4,0.00023985,2]
[369141234,1751499038988,-320.88,0.00023985,2]
[369141236,1751499039000,-2145.29001995,0.00023985,2]
[369141238,1751499039011,-2137.6,0.00023985,2]
[369141240,1751499039024,-1217.33691959,0.00023985,2]
[369141344,1751499040055,-1000.0,0.00023799,2]
[369141346,1751499040065,-22000.0,0.00023985,2]
[369141350,1751499040104,-362.98195036,0.00023985,2]
[369141352,1751499040115,-471.72873836,0.00023985,2]
[369141372,1751499040307,-1409.41316507,0.00023985,2]
[369141375,1751499040319,-2615.76075088,0.00023985,2]
[369141377,1751499040331,-7042.02115219,0.00023985,2]
[369141379,1751499040342,-487.52557497,0.00023985,2]
[369141382,1751499040361,-203418.58310188,0.00023985,2]
[369141385,1751499040386,-813.072159,0.00023985,2]
[369141391,1751499040434,-514.95452659,0.00023985,2]
[369141393,1751499040445,-1505.98879987,0.00023985,2]
[369141395,1751499040456,-152.26,0.0002399,2]
[369141396,1751499040465,-482.27147238,0.0002399,2]
[369141398,1751499040475,-202.076016,0.0002399,7]
[369141400,1751499040484,-855.769157,0.0002399,7]
[369141402,1751499040494,-855.769157,0.0002399,7]
[369141404,1751499040503,-323.076165,0.0002399,7]
[369141406,1751499040512,-323.076165,0.0002399,7]
[369141408,1751499040521,-151.0,0.0002399,7]
[369141410,1751499040531,-151.0,0.0002399,7]
[369141411,1751499040540,-313.034826,0.0002399,7]
[369141413,1751499040550,-313.034826,0.0002399,7]
[369141415,1751499040559,-5403.3181427,0.00023992,2]
[369141417,1751499040569,-1416.8551617,0.00023992,2]
[369141420,1751499040580,-2143.1969992,0.00023992,2]
[369141422,1751499040591,-1000.0,0.00023992,2]
[369141436,1751499040724,-3000.0,0.00023992,2]
[369141438,1751499040735,-1622.44927575,0.00023992,2]
[369141440,1751499040746,-8763.60942693,0.00023992,2]
[369141443,1751499040757,-5888.38680392,0.00023992,2]
[369141446,1751499040767,-69289.22885114,0.00023992,2]
[369141449,1751499040778,-1781.137005,0.00023992,2]
[369141451,1751499040792,-1363.68834929,0.00023992,2]
[369141454,1751499040804,-138.77455887,0.00023992,2]
[369141456,1751499040814,-855.769157,0.00023992,7]
[369141457,1751499040824,-855.769157,0.00023992,7]
[369141459,1751499040836,-323.076165,0.00023992,7]
[369141461,1751499040847,-323.076165,0.00023992,7]
[369141463,1751499040856,-213.979783,0.00023992,7]
[369141465,1751499040866,-151.0,0.00023992,7]
[369141467,1751499040876,-151.0,0.00023992,7]
[369141469,1751499040886,-151.0,0.00023992,7]
[369141471,1751499040895,-185.680628,0.00023992,7]
[369141473,1751499040905,-151.0,0.00023992,7]
[369141475,1751499040914,-293.344489,0.00023992,7]
[369141477,1751499040924,-933.3938,0.00023992,7]
[369141479,1751499040934,-933.3938,0.00023992,7]
[369141481,1751499040943,-220.003936,0.00023992,7]
[369141483,1751499040952,-220.003936,0.00023992,7]
[369141485,1751499040962,-171.701269,0.00023992,7]
[369141487,1751499040971,-171.701269,0.00023992,7]
[369141489,1751499040982,-313.034826,0.00023992,7]
[369141491,1751499040992,-27.9950876,0.00023992,7]
[369141493,1751499041003,-285.0397384,0.00023992,7]
[369141495,1751499041013,-836.11932155,0.00023992,7]
[369141497,1751499041022,-340.87643428,0.00023993,2]
[369141499,1751499041032,-666.0,0.00023999,2]
[369141501,1751499041041,-322.04550138,0.00023999,2]
[369141503,1751499041053,-177.95449862,0.00023999,2]
[369141505,1751499041062,-159.703775,0.00023999,7]
[369141507,1751499041071,-159.703775,0.00023999,7]
[369141509,1751499041081,-150.0,0.00023999,2]
[369141511,1751499041090,-150.0,0.00023999,2]
[369141513,1751499041100,-150.0,0.00023999,2]
[369141515,1751499041109,-500.0,0.00023999,2]
[369141517,1751499041119,-299.83452615,0.00023999,2]
[369141519,1751499041128,-150.0,0.00023999,2]
[369141521,1751499041138,-150.0,0.00023999,2]
[369141522,1751499041147,-150.0,0.00023999,2]
[369141524,1751499041156,-213.74546442,0.00023999,2]
[369141526,1751499041166,-150.0,0.00023999,2]
[369141528,1751499041175,-500.0,0.00023999,2]
[369141529,1751499041185,-320.680057,0.00023999,7]
[369141530,1751499041194,-320.680057,0.00023999,7]
[369141531,1751499041203,-154.749014,0.00023999,7]
[369141532,1751499041212,-154.749014,0.00023999,7]
[369141533,1751499041221,-151.0,0.00023999,2]
[369141534,1751499041230,-151.0,0.00023999,2]
[369141535,1751499041240,-151.0,0.00023999,2]
[369141536,1751499041249,-151.0,0.00023999,2]
[369141537,1751499041258,-1203.0,0.00023999,2]
[369141538,1751499041268,-151.0,0.00023999,2]
[369141539,1751499041277,-1203.0,0.00023999,2]
[369141540,1751499041287,-151.0,0.00023999,2]
[369141541,1751499041296,-153.0,0.00023999,2]
[369141542,1751499041305,-153.0,0.00023999,2]
[369141543,1751499041315,-151.0,0.00023999,2]
[369141544,1751499041325,-153.0,0.00023999,2]
[369141545,1751499041334,-151.0,0.00023999,2]
[369141546,1751499041344,-153.0,0.00023999,2]
[369141547,1751499041354,-151.0,0.00023999,2]
[369141548,1751499041364,-159.56904707,0.00023999,2]
[369141549,1751499041373,-1278.67967828,0.00023999,2]
[369141550,1751499041383,-151.0,0.00023999,2]
[369141551,1751499041392,-153.0,0.00023999,2]
[369141552,1751499041403,-1203.0,0.00023999,2]
[369141553,1751499041413,-151.0,0.00023999,2]
[369141554,1751499041422,-153.0,0.00023999,2]
[369141555,1751499041433,-151.0,0.00023999,2]
[369141556,1751499041444,-151.0,0.00023999,2]
[369141557,1751499041454,-151.0,0.00023999,2]
[369141558,1751499041464,-151.0,0.00023999,2]
[369141559,1751499041474,-151.0,0.00023999,2]
[369141561,1751499041486,-151.0,0.00023999,2]
[369141563,1751499041496,-151.0,0.00023999,2]
[369141565,1751499041505,-151.0,0.00023999,2]
[369141567,1751499041515,-151.0,0.00023999,2]
[369141569,1751499041524,-151.0,0.00023999,2]
[369141570,1751499041533,-151.0,0.00023999,2]
[369141572,1751499041543,-151.0,0.00023999,2]
[369141574,1751499041553,-151.0,0.00023999,2]
[369141576,1751499041563,-151.0,0.00023999,2]
[369141578,1751499041572,-151.0,0.00023999,2]
[369141581,1751499041582,-151.0,0.00023999,2]
[369141582,1751499041591,-151.0,0.00023999,2]
[369141584,1751499041601,-151.0,0.00023999,2]
[369141586,1751499041610,-151.0,0.00023999,2]
[369141588,1751499041620,-151.0,0.00023999,2]
[369141590,1751499041629,-151.0,0.00023999,2]
[369141592,1751499041639,-151.0,0.00023999,2]
[369141594,1751499041648,-151.0,0.00023999,2]
[369141596,1751499041658,-151.0,0.00023999,2]
[369141598,1751499041668,-151.0,0.00023999,2]
[369141600,1751499041677,-151.0,0.00023999,2]
[369141602,1751499041686,-151.0,0.00023999,2]
[369141604,1751499041696,-151.0,0.00023999,2]
[369141606,1751499041705,-151.0,0.00023999,2]
[369141608,1751499041715,-160.46180527,0.00023999,2]
[369141610,1751499041725,-151.0,0.00023999,2]
[369141612,1751499041734,-855.769157,0.00023999,7]
[369141614,1751499041744,-500.0,0.00023999,2]
[369141616,1751499041754,-855.769157,0.00023999,7]
[369141618,1751499041763,-3808.31207021,0.00023999,2]
[369141750,1751499043046,-500.0,0.00023011,2]
[369141752,1751499043056,-41.22236979,0.00023999,2]
[369141754,1751499043065,-634.3596809,0.00023999,2]
[369141756,1751499043076,-616.36239535,0.00023999,2]
[369141759,1751499043088,-641.99246739,0.00023999,2]
[369141761,1751499043101,-565.99524606,0.00023999,2]
[369141771,1751499043193,-254.71326915,0.00023999,2]
[369141777,1751499043243,-1136.11138115,0.00023999,2]
[369141779,1751499043253,-150.0,0.00023999,2]
[369141781,1751499043263,-788.0,0.00023999,2]
[369141783,1751499043273,-323.076165,0.00023999,7]
[369141785,1751499043283,-150.0,0.00023999,2]
[369141787,1751499043293,-150.0,0.00023999,2]
[369141789,1751499043303,-323.076165,0.00023999,7]
[369141791,1751499043312,-150.0,0.00023999,2]
[369141793,1751499043322,-150.0,0.00023999,2]
[369141795,1751499043331,-151.0,0.00023999,7]
[369141797,1751499043341,-151.0,0.00023999,7]
[369141800,1751499043353,-500.0,0.00023999,2]
[369141801,1751499043362,-500.0,0.00023999,2]
[369141803,1751499043372,-500.0,0.00023999,2]
[369141805,1751499043382,-500.0,0.00023999,2]
[369141807,1751499043391,-150.0,0.00023999,2]
[369141810,1751499043403,-500.0,0.00023999,2]
[369141811,1751499043413,-500.0,0.00023999,2]
[369141813,1751499043422,-237.32054322,0.00023999,2]
[369141815,1751499043431,-216.38881792,0.00023999,2]
[369141817,1751499043440,-305.29257955,0.00023999,2]
[369141819,1751499043450,-500.0,0.00023999,2]
[369141821,1751499043458,-500.0,0.00023999,2]
[369141823,1751499043467,-500.0,0.00023999,2]
[369141825,1751499043477,-500.0,0.00023999,2]
[369141827,1751499043486,-500.0,0.00023999,2]
[369141829,1751499043495,-367.27072597,0.00023999,2]
[369141831,1751499043508,-108.05782577,0.00023999,2]
[369141833,1751499043520,-500.0,0.00023999,2]
[369141836,1751499043530,-3.42747502,0.00023999,2]
[369141838,1751499043541,-336.22165889,0.00023999,2]
[369141840,1751499043550,-500.0,0.00023999,2]
[369141842,1751499043560,-500.0,0.00023999,2]
[369141844,1751499043569,-500.0,0.00023999,2]
[369141846,1751499043579,-500.0,0.00023999,2]
[369141847,1751499043588,-500.0,0.00023999,2]
[369141850,1751499043599,-500.0,0.00023999,2]
[369141854,1751499043608,-500.0,0.00023999,2]
[369141855,1751499043617,-500.0,0.00023999,2]
[369141857,1751499043626,-500.0,0.00023999,2]
[369141859,1751499043636,-500.0,0.00023999,2]
[369141861,1751499043645,-500.0,0.00023999,2]
[369141863,1751499043654,-500.0,0.00023999,2]
[369141865,1751499043664,-150.0,0.00023999,2]
[369141867,1751499043673,-500.0,0.00023999,2]
[369141869,1751499043682,-500.0,0.00023999,2]
[369141871,1751499043692,-500.0,0.00023999,2]
[369141873,1751499043701,-150.0,0.00023999,2]
[369141875,1751499043711,-500.0,0.00023999,2]
[369141877,1751499043720,-647.15132521,0.00023999,2]
[369141879,1751499043729,-500.0,0.00023999,2]
[369141881,1751499043739,-500.0,0.00023999,2]
[369141883,1751499043748,-987.0,0.00023999,2]
[369141885,1751499043757,-933.3938,0.00023999,7]
[369141887,1751499043766,-933.3938,0.00023999,7]
[369141889,1751499043775,-500.0,0.00023999,2]
[369141891,1751499043785,-550.0,0.00023999,2]
[369141893,1751499043794,-220.003936,0.00023999,7]
[369141894,1751499043803,-220.003936,0.00023999,7]
[369141896,1751499043813,-171.701269,0.00023999,7]
[369141898,1751499043822,-171.701269,0.00023999,7]
[369141900,1751499043832,-150.0,0.00023999,2]
[369141902,1751499043845,-313.034826,0.00023999,7]
[369141904,1751499043855,-313.034826,0.00023999,7]
[369141906,1751499043865,-150.0,0.00023999,2]
[369141908,1751499043874,-150.0,0.00023999,2]
[369141910,1751499043883,-500.0,0.00023999,2]
[369141912,1751499043893,-500.0,0.00023999,2]
[369141914,1751499043902,-150.0,0.00023999,2]
[369141916,1751499043911,-151.0,0.00023999,2]
[369141918,1751499043921,-151.0,0.00023999,2]
[369141920,1751499043931,-500.0,0.00023999,2]
[369141922,1751499043940,-1203.0,0.00023999,2]
[369141924,1751499043949,-1203.0,0.00023999,2]
[369141926,1751499043959,-153.0,0.00023999,2]
[369141928,1751499043969,-1203.0,0.00023999,2]
[369141930,1751499043979,-150.0,0.00023999,2]
[369141932,1751499043988,-153.0,0.00023999,2]
[369141934,1751499043997,-1203.0,0.00023999,2]
[369141936,1751499044007,-153.0,0.00023999,2]
[369141938,1751499044017,-1203.0,0.00023999,2]
[369141940,1751499044026,-500.0,0.00023999,2]
[369141942,1751499044036,-153.0,0.00023999,2]
[369141944,1751499044045,-166.0,0.00023999,2]
[369141946,1751499044055,-153.0,0.00023999,2]
[369141948,1751499044065,-153.0,0.00023999,2]
[369141950,1751499044075,-153.0,0.00023999,2]
[369141952,1751499044084,-153.0,0.00023999,2]
[369141954,1751499044094,-153.0,0.00023999,2]
[369141956,1751499044104,-153.0,0.00023999,2]
[369141958,1751499044114,-153.0,0.00023999,2]
[369141960,1751499044123,-153.0,0.00023999,2]
[369141962,1751499044133,-3502.11844051,0.00023999,4]
[369141964,1751499044143,-405479.20146586,0.00024,4]
[369141966,1751499044155,-14211.87326162,0.00024,4]
[369141980,1751499044281,-2719.64120537,0.00024,4]
[369142128,1751499045949,-1650.00002,0.00023799,2]
[369142131,1751499045976,-1038.80778,0.00023799,2]
[369142133,1751499045986,-9352.26389754,0.00024,4]
[369142138,1751499046019,-65705.68431889,0.00024,4]
[369142153,1751499046164,-977.98994834,0.00024,4]
[369142155,1751499046175,-2021.57605445,0.00024,4]
[369142158,1751499046187,-2218.431861,0.00024,4]
[369142160,1751499046198,-237743.02907903,0.00024,4]
[369142162,1751499046207,-77838.17690155,0.00024,2]
[369142171,1751499046292,-5659.72390408,0.00024,2]
[369142173,1751499046303,-1831.41327984,0.00024,2]
[369142177,1751499046314,-14725.28048488,0.00024,2]
[369142179,1751499046325,-1198.7,0.00024,2]
[369142181,1751499046336,-433.97561987,0.00024,2]
[369143765,1751499316365,160.39,0.00013699,2]
[369143779,1751499647361,-526.0,0.00021005,2]
[369143780,1751499652572,-383.0,0.00022,2]
[369143781,1751499663512,-383.0,0.00022192,7]
[369143786,1751499757954,460.0,0.00027397,120]
[369143787,1751499905251,1243.64690509,0.000274,120]
[369143833,1751500232010,-523.0,0.00021005,2]
[369143834,1751500232020,-24.25853702,0.00022,2]
[369143835,1751500232031,-3142.5,0.00022,2]
[369143836,1751500232094,-639.16242228,0.00022,2]
[369143837,1751500232107,-435.05356359,0.00022,2]
[369143838,1751500232154,-829.28405544,0.00022,2]
[369143839,1751500232164,-287.0,0.00022,2]
[369143840,1751500232174,-287.0,0.00022192,7]
[369143841,1751500232184,-1651.15,0.00022413,2]
[369143842,1751500232194,-300.0,0.00022454,2]
[369143843,1751500232204,-1200.0,0.00022454,2]
[369143844,1751500232214,-493.30916032,0.00022455,2]
[369143845,1751500232226,-355.86,0.00022455,2]
[369143846,1751500232238,-612.17759608,0.00022455,2]
[369143847,1751500232250,-1289.6532436,0.00022455,2]
[369143848,1751500232260,-250.0,0.00022473,2]
[369143849,1751500232270,-2594.32069211,0.00022481,2]
[369143850,1751500232379,-799.78915794,0.00022481,2]
[369143851,1751500232410,-20505.89014995,0.00022481,2]
[369143853,1751500232420,-200.0,0.00022487,2]
[369143855,1751500232430,-173.37,0.00022656,2]
[369143857,1751500232439,-5000.0,0.00022727,2]
[369143859,1751500232449,-395.2,0.00022754,2]
[369143860,1751500232459,-3665.16,0.00022858,2]
[369143862,1751500232468,-1000.0,0.00022881,2]
[369143864,1751500232478,-316.3,0.00022903,2]
[369143865,1751500232488,-150.0,0.00022999,2]
[369143866,1751500232498,-6245.68447076,0.00022999,2]
[369143868,1751500232508,-20000.0,0.00023,2]
[369143870,1751500232519,-14557.08359662,0.00023,2]
[369143873,1751500232529,-200.0,0.00023,2]
[369143875,1751500232538,-287.0,0.00023014,7]
[369143877,1751500232548,-207.4,0.00023354,2]
[369143879,1751500232558,-17131.43,0.00023368,2]
[369143881,1751500232568,-6347.11853637,0.00023368,2]
[369143885,1751500232601,-550.0,0.00023368,2]
[369143887,1751500232613,-452.74115229,0.00023368,2]
[369143909,1751500238849,-10473.55031134,0.00023368,2]
[369143910,1751500238859,-523.0,0.00023442,5]
[369143911,1751500238868,-168.0,0.00023483,2]
[369143912,1751500238878,-770.791592,0.0002352,4]
[369143913,1751500238890,-605.60263988,0.00023619,2]
[369143914,1751500238899,-168.0,0.00023632,2]
[369143915,1751500238908,-1000.0,0.00023699,2]
[369143916,1751500238918,-2500.0,0.00023699,2]
[369143917,1751500238927,-367.26142553,0.00023752,2]
[369143918,1751500238937,-160.11443692,0.0002378,2]
[369143919,1751500238946,-300.0,0.00023785,2]
[369143920,1751500238955,-162.80343237,0.00023785,2]
[369143921,1751500238965,-244.441978,0.00023785,2]
[369143922,1751500238974,-151.0,0.00023785,2]
[369143923,1751500238984,-500.0,0.00023785,2]
[369143924,1751500238993,-500.0,0.00023785,2]
[369143925,1751500239003,-500.0,0.00023785,2]
[369143926,1751500239019,-500.0,0.00023785,2]
[369143927,1751500239039,-500.0,0.00023785,2]
[369143928,1751500239062,-481.89262877,0.00023785,2]
[369143931,1751500239080,-500.0,0.00023785,2]
[369143933,1751500239097,-500.0,0.00023785,2]
[369143935,1751500239111,-500.0,0.00023785,2]
[369143938,1751500239129,-500.0,0.00023785,2]
[369143940,1751500239146,-500.0,0.00023785,2]
[369143942,1751500239162,-500.0,0.00023785,2]
[369143945,1751500239179,-500.0,0.00023785,2]
[369143947,1751500239197,-500.0,0.00023785,2]
[369143950,1751500239213,-500.0,0.00023785,2]
[369143952,1751500239230,-500.0,0.00023785,2]
[369143954,1751500239245,-500.0,0.00023785,2]
[369143956,1751500239257,-500.0,0.00023785,2]
[369143959,1751500239276,-500.0,0.00023785,2]
[369143961,1751500239289,-500.0,0.00023785,2]
[369143963,1751500239304,-500.0,0.00023785,2]
[369143966,1751500239322,-500.0,0.00023785,2]
[369143968,1751500239339,-302.05,0.00023791,2]
[369143970,1751500239352,-500.0,0.00023799,2]
[369143973,1751500239378,-21379.38335588,0.00023799,2]
[369143978,1751500239422,-9054.9450733,0.00023799,2]
[369143983,1751500239473,-641.11030898,0.00023799,2]
[369144047,1751500240230,-5155.28076184,0.00023799,2]
[369144049,1751500240246,-1312.8795,0.00023799,2]
[369144051,1751500240262,-16401.43526697,0.00023799,2]
[369144054,1751500240282,-618.01746511,0.00023799,2]
[369144085,1751500240661,-27761.07844092,0.00023799,2]
[369144088,1751500240682,-2179.0,0.00023799,2]
[369144093,1751500240729,-11509.6,0.00023799,2]
[369144096,1751500240748,-4454.56820761,0.00023799,2]
[369144511,1751500245681,-646.1049715,0.00023799,2]
[369144548,1751500246027,-78801.63091817,0.00023799,2]
[369144551,1751500246038,-20952.41175687,0.00023799,2]
[369144555,1751500246192,-5779.59770186,0.00023799,2]
[369144556,1751500246208,-19440.05627099,0.00023799,2]
[369144557,1751500246217,-1000.0,0.00023799,2]
[369144558,1751500246227,-200.0,0.00023807,2]
[369144559,1751500246236,-2000.0,0.00023808,2]
[369144560,1751500246245,-200.0,0.00023808,2]
[369144562,1751500246254,-500.0,0.0002388,2]
[369144563,1751500246264,-500.0,0.0002388,2]
[369144565,1751500246273,-500.0,0.0002388,2]
[369144567,1751500246284,-500.0,0.0002388,2]
[369144569,1751500246294,-500.0,0.0002388,2]
[369144571,1751500246303,-500.0,0.0002388,2]
[369144573,1751500246315,-500.0,0.0002388,2]
[369144575,1751500246327,-500.0,0.0002388,2]
[369144576,1751500246337,-500.0,0.0002388,2]
[369144578,1751500246346,-500.0,0.0002388,2]
[369144580,1751500246356,-500.0,0.0002388,2]
[369144583,1751500246365,-500.0,0.0002388,2]
[369144584,1751500246375,-500.0,0.0002388,2]
[369144586,1751500246385,-500.0,0.0002388,2]
[369144588,1751500246394,-500.0,0.0002388,2]
[369144590,1751500246405,-500.0,0.0002388,2]
[369144592,1751500246415,-500.0,0.0002388,2]
[369144594,1751500246424,-500.0,0.0002388,2]
[369144596,1751500246433,-500.0,0.0002388,2]
[369144598,1751500246443,-500.0,0.0002388,2]
[369144600,1751500246452,-500.0,0.0002388,2]
[369144602,1751500246463,-500.0,0.0002388,2]
[369144604,1751500246472,-500.0,0.0002388,2]
[369144606,1751500246482,-500.0,0.0002388,2]
[369144608,1751500246492,-500.0,0.0002388,2]
[369144610,1751500246501,-500.0,0.0002388,2]
[369144612,1751500246511,-500.0,0.0002388,2]
[369144614,1751500246521,-500.0,0.0002388,2]
[369144616,1751500246530,-500.0,0.0002388,2]
[369144618,1751500246539,-500.0,0.0002388,2]
[369144619,1751500246548,-500.0,0.0002388,2]
[369144621,1751500246558,-500.0,0.0002388,2]
[369144623,1751500246567,-500.0,0.0002388,2]
[369144625,1751500246577,-500.0,0.0002388,2]
[369144627,1751500246586,-500.0,0.0002388,2]
[369144629,1751500246596,-500.0,0.0002388,2]
[369144631,1751500246605,-500.0,0.0002388,2]
[369144633,1751500246615,-500.0,0.0002388,2]
[369144635,1751500246624,-500.0,0.0002388,2]
[369144637,1751500246634,-500.0,0.0002388,2]
[369144639,1751500246643,-500.0,0.0002388,2]
[369144641,1751500246653,-500.0,0.0002388,2]
[369144643,1751500246662,-500.0,0.0002388,2]
[369144645,1751500246671,-500.0,0.0002388,2]
[369144647,1751500246680,-500.0,0.0002388,2]
[369144649,1751500246692,-500.0,0.0002388,2]
[369144651,1751500246701,-500.0,0.0002388,2]
[369144653,1751500246711,-500.0,0.0002388,2]
[369144655,1751500246720,-500.0,0.0002388,2]
[369144657,1751500246730,-500.0,0.0002388,2]
[369144659,1751500246739,-500.0,0.0002388,2]
[369144661,1751500246748,-500.0,0.0002388,2]
[369144663,1751500246758,-500.0,0.0002388,2]
[369144665,1751500246767,-500.0,0.0002388,2]
[369144667,1751500246776,-500.0,0.0002388,2]
[369144669,1751500246785,-500.0,0.0002388,2]
[369144671,1751500246795,-500.0,0.0002388,2]
[369144673,1751500246804,-269.7197,0.0002388,2]